Cogmind - Beta 17 @@@ ROGUE MODE // 2026.07.07 @ 22:15:50 Player: Polariusz Result: Destroyed by Autobeam Turret with Autobeam Performance ------------- Evolutions (0) 0 Regions Visited (2) 400 Robots Destroyed (25) 125 Value Destroyed (513) 513 Prototype IDs (2) 40 Alien Tech Used (0) 0 Bonus (0) 0 TOTAL SCORE: 1078 Bonus ------- None Cogmind --------- Core Integrity 0/250 Matter 291/300 Energy 250/250 System Corruption 0% Temperature Cool (16) Movement Treading (160) Location -10/Subcaves Parts ------- > --- POWER (1) -------- Ion Engine > --- PROPULSION (2) --- Light Treads > --- UTILITY (2) ------ Small Storage Unit > --- WEAPON (2) ------- Small Laser Light Assault Rifle > --- INVENTORY (8) ---- Ion Engine Light Ion Engine Subdweller Monowheel Light Armor Plating Light Armor Plating Peak State ------------ > --- POWER ------------ Ion Engine > --- PROPULSION ------- Light Treads Light Treads > --- UTILITY ---------- Small Storage Unit Light Armor Plating > --- WEAPON ----------- Small Laser Small Laser > --- INVENTORY -------- Ion Engine Light Ion Engine Light Armor Plating Light Armor Plating Light Armor Plating Light Armor Plating Small Laser [Rating: 7] Favorites ----------- Power Ion Engine Engine Ion Engine Propulsion Light Treads Treads Light Treads Wheel Wheel Utility Small Storage Unit Storage Small Storage Unit Protection Light Armor Plating Weapon Small Laser Energy Gun Small Laser Ballistic Gun Assault Rifle Build | -11 -10 -10 ------- Run | Yrd Mat Sub Slots Evolved . | . . . Power . | . . . Propulsion . | . . . Utility . | . . . Weapon . | . . . Parts Attached 20 | 5 12 3 Power 1 | . 1 . Engine 1 | . 1 . Core . | . . . Reactor . | . . . Propulsion 7 | 2 5 . Treads 3 | . 3 . Leg . | . . . Wheel 4 | 2 2 . Hover . | . . . Flight . | . . . Utility 5 | 1 2 2 Device . | . . . Storage 1 | 1 . . Processor . | . . . Hackware . | . . . Protection 4 | . 2 2 Artifact . | . . . Weapon 7 | 2 4 1 Energy Gun 4 | . 4 . Energy Cannon . | . . . Ballistic Gun 3 | 2 . 1 Ballistic Cannon . | . . . Launcher . | . . . Special Weapon . | . . . Impact Weapon . | . . . Slashing Weapon . | . . . Piercing Weapon . | . . . Special Melee Weapon . | . . . Unidentified Prototypes . | . . . Parts Lost 13 | . 6 7 Power . | . . . Propulsion 4 | . 3 1 Utility 4 | . 1 3 Weapon 5 | . 2 3 Highest Loss Streak 4 | . 4 4 To Critical Strikes . | . . . Average Backups 6 | 2 6 6 Power 1 | . 1 2 Propulsion . | 1 1 . Utility 2 | . 2 3 Weapon 1 | . 1 1 Tool/Special . | . . . Unused Backups 5 | . . 5 Power 2 | . . 2 Propulsion 1 | . . 1 Utility 2 | . . 2 Weapon . | . . . Tool/Special . | . . . Average Slot Usage (%) 87 | . 85 91 Engine 9 | . 6 14 Treads 17 | . 16 20 Wheel 6 | . 10 . Storage 14 | . 14 14 Protection 10 | . 8 13 Energy Gun 19 | . 15 26 Ballistic Gun 7 | . 12 . Peak Build Rating 7 | 5 7 7 Average Rating 6 | 3 5 6 On Entrance 4 | . 5 7 Avg Prop Armor Cover (%) . | . . . Naked Turns . | . . . Heaviest Build 15 | 8 15 15 Greatest Support 40 | 26 40 40 Greatest Overweight (x) . | . . . Average Overweight (x) . | . . . Largest Inventory Capacity 8 | 8 8 8 Average Capacity 7 | 7 8 8 Most Carried 8 | 5 8 8 Average Carried 6 | 2 6 6 Final Capacity 8 | 8 8 8 Final Carried 8 | 4 8 5 Class Distribution -------------------- 100% | Mutant Dominant Class ---------------- Mutant | -10/Materials Mutant | -10/Subcaves Resources | -11 -10 -10 ----------- Run | Yrd Mat Sub Matter Collected 577 | 248 264 65 Remotely . | . . . Salvage Created 791 | . 700 91 Parts 46 | . 38 8 Haulers Intercepted . | . . . Recyclers Shooed 2 | . 2 . Parts Field Recycled . | . . . Retrieved Matter . | . . . Parts Self-Destructed 7 | . . 7 Prevented . | . . . Parts Restored . | . . . Kills | -11 -10 -10 ------- Run | Yrd Mat Sub Combat Hostiles Destroyed 19 | . 15 4 Guns 19 | . 15 4 Classes Destroyed 6 | . 5 1 Worker 1 | . 1 . Recycler 3 | . 3 . Watcher 2 | . 2 . Swarmer 9 | . 6 3 Grunt 9 | . 9 . Subdweller 1 | . . 1 Best Kill Streak 7 | . 7 3 Combat Bots Only 7 | . 7 3 Max Kills in Single Turn 2 | . 2 1 Gunslinging 1 | . 1 . Exploded . | . . . Melee . | . . . Uniques/NPCs Destroyed . | . . . Combat | -11 -10 -10 -------- Run | Yrd Mat Sub Hostile Shots Fired 240 | . 136 104 Missed 77 | . 44 33 Hits 163 | . 92 71 Projectile 163 | . 92 71 Critical Strikes 3 | . 3 . Damage Taken 1764 | . 1010 754 Core 250 | . 128 122 Absorbed by Shields . | . . . Core Remaining (%) 100 | 100 . . Volleys Fired 99 | . 67 32 Largest 2 | . 2 2 Hottest 80 | . 80 80 Shots Fired 186 | . 134 52 Gun 186 | . 134 52 Cannon . | . . . Launcher . | . . . Special . | . . . Kinetic 94 | . 90 4 Thermal 92 | . 44 48 Explosive . | . . . Electromagnetic . | . . . Robot Hit Streak 25 | . 10 25 Robot Miss Streak 4 | . 4 3 Penetration Max . | . . . Secondary Targets 4 | . 4 . Max Gunslinging Chain 1 | . 1 . Shots Hit Robots 122 | . 81 41 Core Hits 49 | . 40 9 Critical Kills . | . . . Critical Parts Destroyed . | . . . Critical Strikes . | . . . Melee Attacks . | . . . Impact . | . . . Slashing . | . . . Piercing . | . . . Sneak Attacks . | . . . Combat Hostiles . | . . . Follow-up Attacks . | . . . Damage Inflicted 1340 | . 883 457 Guns 1340 | . 883 457 Cannons . | . . . Explosions . | . . . Melee . | . . . Ramming . | . . . Kinetic 574 | . 549 25 Thermal 766 | . 334 432 Explosive . | . . . Electromagnetic . | . . . Impact . | . . . Slashing . | . . . Piercing . | . . . Highest Corruption . | . . . Average Corruption . | . . . Corruption Purged . | . . . Corruption Blocked . | . . . Overload Shots . | . . . Overflow Damage . | . . . Projectiles . | . . . Explosions . | . . . Melee . | . . . Knockbacks . | . . . Impact . | . . . Kinetic . | . . . Secondary . | . . . Self-Inflicted Damage . | . . . Shots . | . . . Rammed . | . . . Targets Rammed . | . . . Kicked . | . . . Crushed . | . . . Highest Temperature 237 | . 237 27 Average Temperature 61 | . 63 13 Received Heat Transfer 753 | . 465 288 Effects 1 | . 1 . Interference 1 | . 1 . Siege Activations . | . . . Martial Activations . | . . . Shielding Activations . | . . . Robots Disrupted . | . . . Combat Hostiles . | . . . Robots Corrupted . | . . . Combat Hostiles . | . . . Parts Fried . | . . . Impact Corruptions . | . . . Robots Melted . | . . . Combat Hostiles . | . . . Parts Melted 1 | . . 1 Heat Transferred 1750 | . 775 975 Parts Sabotaged . | . . . Parts Stolen . | . . . Parts Stripped . | . . . Power Chain Reactions . | . . . Alert | -11 -10 -10 ------- Run | Yrd Mat Sub Maximum Alert Level . | . . . Low Security (%) 100 | 100 100 . Level 1 . | . . . Level 2 . | . . . Level 3 . | . . . Level 4 . | . . . Level 5 . | . . . High Security . | . . . Max Security . | . . . Peak Influence 130 | . 130 . Initial . | . . . Average 38 | . 40 . Influence Increases 498 | . 408 90 Destroy 0b10 Robot/C 360 | . 300 60 Destroy 0b10 Robot/NC 30 | . 30 . Destroy Leader 64 | . 64 . Successful Hack 14 | . 14 . Lose Combat Pursuer 30 | . . 30 Influence Decreases 454 | . 408 46 Time Decay 364 | . 348 16 Lost Part 90 | . 60 30 Squads Dispatched 2 | . 2 . Investigation . | . . . Extermination . | . . . Reinforcement 2 | . 2 . Assault . | . . . Garrison . | . . . Intercept . | . . . Searches Triggered . | . . . Construction Impeded . | . . . Haulers Reinforced . | . . . Active Scanning Responses . | . . . Cargo Convoy Interrupts . | . . . Stealth | -11 -10 -10 --------- Run | Yrd Mat Sub Distress Signals 4 | . 4 . Communications Jammed . | . . . Distress Signals . | . . . Times Spotted 35 | . 26 9 Peak Tracking Total 9 | . 9 6 Tactical Retreats 1 | . . 1 Traps | -11 -10 -10 ------- Run | Yrd Mat Sub Traps Triggered 2 | . 2 . Indirectly . | . . . Trap Hack Attempts . | . . . Triggered . | . . . Disarmed . | . . . Reprogrammed . | . . . Reused . | . . . Traps Extracted . | . . . Installed . | . . . Triggered . | . . . Machines | -11 -10 -10 ---------- Run | Yrd Mat Sub Machines Disabled . | . . . Max in Single Turn . | . . . Machines Repaired . | . . . Machines Dismantled . | . . . Machines Sabotaged . | . . . Overloaded Fab Kills . | . . . Hacking | -11 -10 -10 --------- Run | Yrd Mat Sub Machines Accessed 4 | . 4 . Terminals 4 | . 4 . Fabricators . | . . . Repair Stations . | . . . Recycling Units . | . . . Scanalyzers . | . . . Garrison Access . | . . . Total Hacks 10 | . 10 . Successful 7 | . 7 . Failed 3 | . 3 . Catastrophic 1 | . 1 . Database Lockouts . | . . . Manual 5 | . 5 . Terminals 10 | . 10 . Fabricators . | . . . Repair Stations . | . . . Recycling Units . | . . . Scanalyzers . | . . . Garrison Access . | . . . Terminal Hacks 5 | . 5 . Robot Analysis 1 | . 1 . Prototype ID Bank 1 | . 1 . Locate Traps 3 | . 3 . Fabricator Hacks . | . . . Repair Station Hacks . | . . . Recycling Unit Hacks . | . . . Scanalyzer . | . . . Garrison Access Hacks . | . . . Unauthorized Hacks 2 | . 2 . Terminals 2 | . 2 . Botnet 2 | . 2 . Fabricators . | . . . Repair Stations . | . . . Recycling Units . | . . . Scanalyzers . | . . . Garrison Access . | . . . Data Cores Recovered . | . . . Used . | . . . Hacking Detections 4 | . 4 . Full Trace Events . | . . . Feedback Events . | . . . Feedback Blocked . | . . . Robot Schematics Acquired . | . . . Robots Built . | . . . Authchips . | . . . Time . | . . . Total Robot Build Rating . | . . . Part Schematics Acquired . | . . . Parts Built . | . . . Authchips . | . . . Time . | . . . Total Part Build Rating . | . . . Part Studies Acquired . | . . . Parts Repaired . | . . . Time . | . . . Parts Recycled . | . . . Recycled Matter . | . . . Retrieved Matter . | . . . Retrieved Components . | . . . Parts Scanalyzed . | . . . Part Schematics Acquired . | . . . Parts Damaged . | . . . Bothacking | -11 -10 -10 ------------ Run | Yrd Mat Sub Used RIF Installer . | . . . Robots Hacked . | . . . Non-combat . | . . . Combat . | . . . Robot Hacks Applied . | . . . Relay Couplers Released . | . . . Fabnet Peak Effective % . | . . . Robots Rewired . | . . . Allies Hacked . | . . . Hacks Repelled . | . . . Allies | -11 -10 -10 -------- Run | Yrd Mat Sub Total Allies . | . . . Largest Group . | . . . Highest-Rated Group . | . . . Highest-Rated Ally . | . . . Total Orders . | . . . Ally Attacks . | . . . Total Damage . | . . . Kills . | . . . Allies Corrupted . | . . . Allies Melted . | . . . Intel | -11 -10 -10 ------- Run | Yrd Mat Sub Active Infowar (turns) . | . . . Robot Analysis Total 1 | . 1 . Derelict Logs Recovered 2 | . . 2 Drone Launches . | . . . Drone Recoveries . | . . . Exploration | -11 -10 -10 ------------- Run | Yrd Mat Sub Turns Passed 1581 | 54 959 568 Spaces Moved 928 | 50 584 294 Core 12 | 12 . . Treads 580 | . 286 294 Legs . | . . . Wheels 336 | 38 298 . Hover . | . . . Flight . | . . . Fastest Speed 50 | 50 80 160 Average Speed 130 | 80 119 160 Slowest Speed 160 | 90 160 160 Overloaded Moves . | . . . Propulsion Burnouts . | . . . Robots Hopped . | . . . Potential Cave-ins . | . . . Cave-ins Triggered . | . . . Exploration Rate (%) 49 | 4 92 52 Regions Visited 2 Branch Regions 1 Pre-discovered Areas . | . . . Known Exits Taken . | . . . Unknown Exits Taken 2 | 1 1 . Scrap Searched 1 | . . 1 Spaces Dug . | . . . Terrain Destroyed . | . . . Melee . | . . . Projectile . | . . . AOE . | . . . Terrain Rammed . | . . . Walls Destroyed . | . . . Machines Disabled . | . . . Actions | -11 -10 -10 --------- Run | Yrd Mat Sub Total 1122 | 63 718 341 Wait 45 | . 37 8 Move 926 | 49 583 294 Hop . | . . . Pick Up 25 | 9 14 2 Fast Attach 2 | . 2 . Attach 19 | 5 9 5 Detach . | . . . Swap 3 | . 3 . Drop 3 | . 3 . Fire 99 | . 67 32 Melee . | . . . Ram . | . . . Kick . | . . . Crush . | . . . Escape Stasis . | . . . Rewire . | . . . Trap . | . . . Miscellaneous . | . . . Route ------- -11/Scrapyard -10/Materials (discovered 6 exits: [*Mat x3] / [*Min x2] / [*Sub]) -10/Subcaves (discovered 2 exits: [*Mat] / [*Rec]) History --------- Turn | Location | Event 18 | -11/Scrapyard | Discovered new exit (range 16) 55 | -11/Scrapyard | Entered Materials 61 | -10/Materials | Discovered new exit (range 16) 164 | -10/Materials | Discovered new exit (range 5) 207 | -10/Materials | Discovered new exit (range 3) 307 | -10/Materials | Build established: Mutant 342 | -10/Materials | Discovered new exit (range 14) 482 | -10/Materials | Core integrity fell below 50% 501 | -10/Materials | Lost 4 parts (1n1u2w) 513 | -10/Materials | Destroyed 7 combat bots 679 | -10/Materials | Discovered new exit (range 15) 1000 | -10/Materials | Discovered new exit (range 8) 1014 | -10/Materials | Entered Subcaves 1128 | -10/Subcaves | Learned location of 2 exits from Materials 1326 | -10/Subcaves | Lost 4 parts (1n1u2w) 1497 | -10/Subcaves | Discovered new exit (range 15) 1537 | -10/Subcaves | Discovered new exit (range 16) 1552 | -10/Subcaves | Core integrity fell below 20% 1582 | -10/Subcaves | Destroyed by Autobeam Turret with Autobeam Last Messages --------------- Data stored: Mines entrances (x2). 01497_ EXIT=FOUND 01543_ Sml. Laser destroyed. 01544_ S-10 Pest destroyed. 01545_ Lgt. Armor Plating destroyed. 01550_ Flight Unit fries itself beyond repair. 01552_ S-10 Pest destroyed. 01557_ Lgt. Assault Rifle fries itself beyond repair. 01559_ Lgt. Ion Engine fries itself beyond repair. 01562_ Flight Unit fries itself beyond repair. 01562_ Lgt. Ion Engine fries itself beyond repair. 01564_ S-10 Pest destroyed. 01566_ Acquired 10 matter. 01569_ Acquired Lgt. Assault Rifle. 01575_ Flight Unit fries itself beyond repair. 01582_ Lgt. Armor Plating destroyed. Map ----- +----------------------------------------------------+ | ?????????????????????????????????????????????????? | | ?????????????????????????????????????????????????? | | ?????????????????????????????????????????????????? | | ?????????????????????????????????????????????????? | | ?????????????????????????????????????????????????? | | ?????????????????????????????????????????????????? | | ?????????????????????????????????????????????????? | | ?????????????????????????????????????????????????? | | ?????????????????????????????????????????????????? | | ???????????????????????????#####?????????????##??? | | ?????????????????????????### ######??????? #??? | | ????????????????????????## #??????? #??? | | ????????????????????????# ###???? #???? | | ????#???????????????????# #???# #???? | | ??? ##??????????????????# < ##?# #???? | | ?## #?????????????????## ## #????? | | # ?##????????????????# #????? | | ### #????????????????## ##???? | | ## #?????????????## #???? | | #??????????????# #???? | | #???????????????# ## ## ##???? | | #????????????????# ### ## #????? | | #????????????????# #### #????? | | #????????????????# ### ###??? | | ## #????????#########%% #?# #??? | | ????? ###??""t @ % #?# #??? | | ??????????< #?## ## ##??? | | ##?######??""t #??### #?# #???? | | #?? #??" ###### #???# ##?# #??? | | #??? #??" ?????#### ##???## #??# #??? | | ##???# #??????????# #????## #???# #??? | | #???## ##?###????? ### #?#### ####? #??? | | ??### ### ##????# #?###### ## ##?###??? | | ??# ## ###### #### ## ##?????? | | ?## ## # # #?????? | | ## ## ##?????? | | # ## ## #?## #??????? | | ## ##### ######## ##??????? | | ### ###### ##??# ##???????? | | ##### #### #????????? | | ## ## #????????? | | ## #????????? | | ##### ###### #????????? | | ## ##???#### #????# ### #????????? | | ?####???????## ##????# #?## #????????? | | ?????????????##??????##### ##??#### ##????????? | | ?????????????????????????####??????#####?????????? | | ?????????????????????????????????????????????????? | | ?????????????????????????????????????????????????? | | ?????????????????????????????????????????????????? | +----------------------------------------------------+ Best States ------------- Heat Dissipation 25 Energy Generation 10 Energy Capacity 250 Matter Stores 300 Matter Capacity 300 Sight Range 16 Terrain Scan Density 10 Armor Coverage 150 Evasion (%) 50 Recoil Reduction 2 Item Schematics ----------------- None Robot Schematics ------------------ None Fabricated ------------ Nothing Repaired ---------- Nothing Studied --------- None Alien Tech Used ----------------- None Achievements -------------- None Challenges ------------ None Game ------ Seed DerelictSupersonicReprisal Manual? 0 Play Time 00:10:50 Cumulative 64.8 hours Start 2026.07.07 @ 22:06:46 End 2026.07.07 @ 22:15:50 Sessions 1 Manual Loads 0 Difficulty Rogue Special Mode None Game No. 71 Rogue 71 Adventurer 0 Explorer 0 Win Type - Total 2 Types 2/0/0/0/0/0/0/0/0/0 Lore% 47 Gallery% 32 Achievement% 23 Wizard Run 0 Options --------- Layout 1 ASCII 0 Keyboard 0 Movement Mouse Keybinds 0 Fullscreen 1 Font 24/Smallcaps Map View 50x35 Zoom Use 0% Tactical HUD 1 Map Filters NONE Filters NONE Steam 1 RUN: 14e8a086-d9c2-4920-b0b9-f9b00f215ee1